[Event "AUT-ch Open 2020"]
[Site "Graz"]
[Date "2020.02.15"]
[Round "2.33"]
[White "Drnovsek, Gal"]
[Black "Ninov, Dayan"]
[Result "0-1"]
[ECO "A10"]
[WhiteElo "2242"]
[BlackElo "2242"]
[Annotator "ChessBase"]
[PlyCount "70"]
[EventDate "2020.02.14"]
[EventType "swiss"]
[EventCountry "AUT"]
[SourceTitle "playchess.com"]
[Source "ChessBase"]
[SourceQuality "1"]
[TimeControl "40/5400+30:1800+30"]

1. c4 {[%emt 0:01:55]} g6 {[%emt 0:00:00]} 2. d4 {[%emt 0:00:17]} Bg7 {[%emt 0:00:00]} 3. Nf3 {[%emt 0:01:13]} c5 {[%emt 0:00:11]} 4. d5 {[%emt 0:01:16]} d6 {[%emt 0:00:09]} 5. e4 {[%emt 0:00:44]} e6 {[%emt 0:00:51]} 6. Be2 {[%emt 0:04:18]} a6 {[%emt 0:01:44]} 7. O-O {[%emt 0:01:01]} exd5 {[%emt 0:01:13]} 8. exd5 {[%emt 0:01:39]} Ne7 {[%emt 0:05:18]} 9. Nc3 {[%emt 0:02:16]} Nd7 {[%emt 0:15:53]} 10. Ne4 {[%emt 0:07:12]} Nf6 {[%emt 0:02:12]} 11. Qa4+ {[%emt 0:01:50]} b5 {[%emt 0:01:24]} 12. cxb5 {[%emt 0:03:42]} O-O {[%emt 0:05:54]} 13. bxa6 {[%emt 0:06:28]} Nfxd5 {[%emt 0:09:04]} 14. Rd1 {[%emt 0:13:02]} Qc7 {[%emt 0:01:10]} 15. Qb3 {[%emt 0:05:03]} Rb8 {[%emt 0:05:29]} 16. Qa3 {[%emt 0:02:43]} Rb6 {[%emt 0:16:01]} 17. a7 {[%emt 0:10:14]} Bb7 {[%emt 0:00:41]} 18. Nc3 {[%emt 0:00:27]} Nxc3 {[%emt 0:04:25]} 19. bxc3 {[%emt 0:00:05]} Ra8 {[%emt 0:00:49]} 20. Bd2 {[%emt 0:03:43]} Bc6 {[%emt 0:06:10]} 21. Qc1 {[%emt 0:02:05]} Rxa7 {[%emt 0:00:42]} 22. Bh6 {[%emt 0:01:47]} Bh8 {[%emt 0:01:17]} 23. Nd2 {[%emt 0:01:54]} d5 {[%emt 0:04:47]} 24. Nb3 {[%emt 0:00:54]} Ba4 {[%emt 0:02:09]} 25. Bf4 {[%emt 0:02:03]} Be5 {[%emt 0:00:56]} 26. Bxe5 {[%emt 0:01:30]} Qxe5 {[%emt 0:00:02]} 27. Re1 {[%emt 0:00:08]} Bxb3 {[%emt 0:01:46]} 28. axb3 {[%emt 0:04:30]} Rxa1 {[%emt 0:00:02]} 29. Qxa1 {[%emt 0:00:05]} Re6 {[%emt 0:01:11]} 30. g3 {[%emt 0:00:43]} Nf5 {[%emt 0:04:42]} 31. Kf1 {[%emt 0:06:00]} Qe4 {[%emt 0:00:12]} 32. f3 {[%emt 0:00:04]} Qc2 {[%emt 0:01:47]} 33. Kf2 {[%emt 0:01:49]} d4 {[%emt 0:02:28]} 34. cxd4 {[%emt 0:00:06]} Nxd4 {[%emt 0:00:13]} 35. Qd1 {[%emt 0:01:03]} Rxe2+ {[%emt 0:00:21]} 0-1

[Event "AUT-ch Open 2020"]
[Site "Graz"]
[Date "2020.02.15"]
[Round "2.34"]
[White "Palczert, Matyas"]
[Black "Megalios, Konstantinos"]
[Result "0-1"]
[ECO "B67"]
[WhiteElo "2094"]
[BlackElo "2094"]
[Annotator "NA"]
[PlyCount "74"]
[EventDate "2020.02.14"]
[EventType "swiss"]
[EventCountry "AUT"]
[SourceTitle "playchess.com"]
[Source "ChessBase"]
[SourceQuality "1"]
[TimeControl "40/5400+30:1800+30"]

1. e4 {[%emt 0:00:00]} c5 {[%emt 0:00:00]} 2. Nf3 {[%emt 0:00:00]} d6 {[%emt 0:00:00]} 3. d4 {[%emt 0:00:00]} cxd4 {[%emt 0:00:07]} 4. Nxd4 {[%emt 0:00:07]} Nf6 {[%emt 0:00:06]} 5. Nc3 {[%emt 0:00:09]} Nc6 {[%emt 0:00:28]} 6. Bg5 {[%emt 0:00:55]} e6 {[%emt 0:00:21]} 7. Qd2 {[%emt 0:00:36]} a6 {[%emt 0:00:20]} 8. O-O-O {[%emt 0:01:09]} Bd7 {[%emt 0:00:24]} 9. f4 {[%emt 0:02:49]} h6 {[%emt 0:00:16]} 10. Bh4 {[%emt 0:07:39]} Nxe4 {[%emt 0:00:40]} 11. Nxe4 {[%emt 0:00:28]} Qxh4 {[%emt 0:00:26]} 12. Nxc6 {[%emt 0:04:50]} Bxc6 {[%emt 0:00:28]} 13. Nxd6+ {[%emt 0:00:52]} Bxd6 {[%emt 0:00:11]} 14. Qxd6 {[%emt 0:00:04]} Rd8 {[%emt 0:00:36]} 15. Qxd8+ {[%emt 0:00:20]} Qxd8 {[%emt 0:00:09]} 16. Rxd8+ {[%emt 0:00:05]} Kxd8 {[%emt 0:00:06]} 17. Rg1 {[%emt 0:06:26]} g5 {[%emt 0:03:09]} 18. g3 {[%emt 0:02:55]} Rg8 {[%emt 0:16:17]} 19. f5 {[%emt 0:01:47]} exf5 {[%emt 0:07:25]} 20. Bh3 {[%emt 0:02:21]} Be4 {[%emt 0:05:54]} 21. Rf1 {[%emt 0:04:03]} g4 {[%emt 0:02:50]} 22. Rd1+ {[%emt 0:00:10]} Ke7 {[%emt 0:00:41]} 23. Bf1 {[%emt 0:00:10]} h5 {[%emt 0:02:22]} 24. Bd3 {[%emt 0:01:09]} Bf3 {[%emt 0:01:14]} 25. Re1+ {[%emt 0:01:51]} Kf6 {[%emt 0:00:14]} 26. Kd2 {[%emt 0:00:44]} h4 {[%emt 0:04:41]} 27. b4 {[%emt 0:07:10]} Rh8 {[%emt 0:05:47]} 28. a4 {[%emt 0:01:20]} hxg3 {[%emt 0:03:08]} 29. hxg3 {[%emt 0:00:07]} Rh3 {[%emt 0:02:50]} 30. Rg1 {[%emt 0:00:42]} Kg5 {[%emt 0:02:19]} 31. b5 {[%emt 0:02:40]} axb5 {[%emt 0:02:14]} 32. axb5 {[%emt 0:00:52]} f4 {[%emt 0:00:07]} 33. gxf4+ {[%emt 0:00:21]} Kxf4 {[%emt 0:00:08]} 34. Re1 {[%emt 0:00:46]} Rh2+ {[%emt 0:04:14]} 35. Kc3 {[%emt 0:00:08]} g3 {[%emt 0:00:44]} 36. Re7 {[%emt 0:00:06]} f5 {[%emt 0:02:47]} 37. Rg7 {[%emt 0:00:35]} g2 {[%emt 0:00:40]} 0-1

[Event "AUT-ch Open 2020"]
[Site "Graz"]
[Date "2020.02.15"]
[Round "2.35"]
[White "Hoefelsauer, Thomas"]
[Black "Horvath, Reka"]
[Result "1-0"]
[ECO "A31"]
[WhiteElo "2390"]
[BlackElo "2018"]
[Annotator "ChessBase"]
[PlyCount "126"]
[EventDate "2020.02.14"]
[EventType "swiss"]
[EventCountry "AUT"]
[SourceTitle "playchess.com"]
[Source "ChessBase"]
[SourceQuality "1"]
[TimeControl "40/5400+30:1800+30"]

1. Nf3 {[%emt 0:00:00]} Nf6 {[%emt 0:00:00]} 2. c4 {[%emt 0:00:00]} c5 {[%emt 0:00:01]} 3. d4 {[%emt 0:00:00]} cxd4 {[%emt 0:00:19]} 4. Nxd4 {[%emt 0:00:04]} g6 {[%emt 0:00:13]} 5. g3 {[%emt 0:00:19]} Bg7 {[%emt 0:00:08]} 6. Bg2 {[%emt 0:00:04]} O-O {[%emt 0:00:13]} 7. Nc3 {[%emt 0:00:05]} Nc6 {[%emt 0:00:16]} 8. O-O {[%emt 0:00:07]} d6 {[%emt 0:00:10]} 9. e3 {[%emt 0:00:28]} Bd7 10. b3 {[%emt 0:00:47]} Qc8 {[%emt 0:04:05]} 11. Bb2 {[%emt 0:01:40]} Bh3 {[%emt 0:01:14]} 12. Rc1 {[%emt 0:05:19]} Bxg2 {[%emt 0:01:42]} 13. Kxg2 {[%emt 0:00:04]} h5 {[%emt 0:11:35]} 14. Nd5 {[%emt 0:06:49]} e6 {[%emt 0:15:37]} 15. Nxf6+ {[%emt 0:21:25]} Bxf6 {[%emt 0:00:15]} 16. Qf3 {[%emt 0:00:43]} Bg7 {[%emt 0:06:22]} 17. Rfd1 {[%emt 0:04:09]} Ne5 {[%emt 0:02:08]} 18. Qe2 {[%emt 0:00:38]} b6 {[%emt 0:11:05]} 19. f4 {[%emt 0:09:12]} Qb7+ {[%emt 0:04:13]} 20. Kg1 {[%emt 0:03:51]} Nf3+ {[%emt 0:10:55]} 21. Qxf3 {[%emt 0:09:10]} Qxf3 {[%emt 0:00:11]} 22. Nxf3 {[%emt 0:00:05]} Bxb2 {[%emt 0:00:08]} 23. Rc2 {[%emt 0:00:08]} Ba3 {[%emt 0:00:13]} 24. Nd4 {[%emt 0:00:37]} Bc5 {[%emt 0:01:03]} 25. Kf2 {[%emt 0:00:41]} a6 {[%emt 0:07:00]} 26. Rcd2 {[%emt 0:01:22]} Bb4 {[%emt 0:02:27]} 27. Rd3 {[%emt 0:01:05]} b5 {[%emt 0:01:03]} 28. Nc6 {[%emt 0:10:40]} bxc4 {[%emt 0:02:29]} 29. Rd4 {[%emt 0:00:35]} Bc5 {[%emt 0:03:41]} 30. Rxc4 {[%emt 0:00:10]} a5 {[%emt 0:01:12]} 31. Kf3 {[%emt 0:01:56]} Kg7 {[%emt 0:01:21]} 32. Nd4 {[%emt 0:04:14]} Rfb8 {[%emt 0:03:54]} 33. Nc2 {[%emt 0:02:17]} Rc8 {[%emt 0:02:24]} 34. e4 {[%emt 0:01:36]} f5 {[%emt 0:02:40]} 35. exf5 {[%emt 0:10:09]} d5 {[%emt 0:00:25]} 36. Rc3 {[%emt 0:01:24]} gxf5 {[%emt 0:00:17]} 37. Rc1 {[%emt 0:01:10]} Bb6 {[%emt 0:04:06]} 38. Ne1 {[%emt 0:00:55]} Rxc3+ {[%emt 0:00:39]} 39. Rxc3 {[%emt 0:00:01]} Bd4 {[%emt 0:01:39]} 40. Rc7+ {[%emt 0:01:43]} Kf6 {[%emt 0:01:29]} 41. Ke2 {[%emt 0:33:10]} Ra7 {[%emt 0:14:19]} 42. Rc6 {[%emt 0:00:00]} Ke7 {[%emt 0:01:05]} 43. Nf3 {[%emt 0:00:00]} Bf6 {[%emt 0:00:27]} 44. Ng5 {[%emt 0:00:00]} Kd7 {[%emt 0:00:23]} 45. Rb6 {[%emt 0:00:00]} Bd8 {[%emt 0:00:54]} 46. Rb8 {[%emt 0:00:00]} Kc7 {[%emt 0:08:07]} 47. Rb5 {[%emt 0:00:00]} Kc6 {[%emt 0:00:10]} 48. a4 {[%emt 0:00:00]} Bb6 {[%emt 0:01:25]} 49. Kd3 {[%emt 0:00:00]} Re7 {[%emt 0:00:34]} 50. Nf3 {[%emt 0:00:00]} Rb7 {[%emt 0:03:24]} 51. b4 {[%emt 0:00:00]} axb4 {[%emt 0:00:52]} 52. Rxb4 {[%emt 0:00:00]} Ra7 {[%emt 0:01:36]} 53. Ne5+ {[%emt 0:03:43]} Kc7 {[%emt 0:00:31]} 54. Kc2 {[%emt 0:00:01]} Bg1 {[%emt 0:02:48]} 55. Nf3 {[%emt 0:01:14]} Bc5 {[%emt 0:00:45]} 56. Rb5 {[%emt 0:00:01]} Kd6 {[%emt 0:00:36]} 57. Kb3 {[%emt 0:00:31]} d4 {[%emt 0:00:38]} 58. a5 {[%emt 0:00:24]} Kd5 {[%emt 0:00:32]} 59. Ne5 {[%emt 0:00:40]} Kd6 {[%emt 0:00:42]} 60. Nd3 {[%emt 0:01:10]} Rc7 {[%emt 0:00:11]} 61. Nxc5 {[%emt 0:00:55]} Rxc5 {[%emt 0:00:05]} 62. Rxc5 {[%emt 0:00:04]} Kxc5 {[%emt 0:00:06]} 63. a6 {[%emt 0:00:07]} Kd5 1-0

[Event "AUT-ch Open 2020"]
[Site "Graz"]
[Date "2020.02.15"]
[Round "2.36"]
[White "Tomazini, Zan"]
[Black "Skurniak, Szymon"]
[Result "1-0"]
[ECO "B06"]
[WhiteElo "1942"]
[BlackElo "1942"]
[Annotator "NA"]
[PlyCount "69"]
[EventDate "2020.02.14"]
[EventType "swiss"]
[EventCountry "AUT"]
[SourceTitle "playchess.com"]
[Source "ChessBase"]
[SourceQuality "1"]
[TimeControl "40/5400+30:1800+30"]

1. e4 {[%emt 0:02:58]} g6 {[%emt 0:01:39]} 2. d4 {[%emt 0:00:25]} Bg7 {[%emt 0:00:06]} 3. Nc3 {[%emt 0:00:07]} c6 {[%emt 0:00:18]} 4. Nf3 {[%emt 0:01:53]} d5 {[%emt 0:00:16]} 5. h3 {[%emt 0:00:06]} Nh6 {[%emt 0:00:12]} 6. g3 {[%emt 0:03:40]} O-O {[%emt 0:00:24]} 7. Bg2 {[%emt 0:00:19]} dxe4 {[%emt 0:05:47]} 8. Nxe4 {[%emt 0:00:06]} Nf5 {[%emt 0:00:09]} 9. c3 {[%emt 0:00:26]} Be6 {[%emt 0:00:47]} 10. O-O {[%emt 0:01:11]} Bd5 {[%emt 0:00:23]} 11. Re1 {[%emt 0:05:12]} Nd6 {[%emt 0:13:00]} 12. Nxd6 {[%emt 0:06:06]} exd6 {[%emt 0:05:04]} 13. Bf4 {[%emt 0:02:29]} Na6 {[%emt 0:01:23]} 14. Qa4 {[%emt 0:04:42]} Qd7 {[%emt 0:13:31]} 15. Qa3 Rfd8 {[%emt 0:03:32]} 16. Bxd6 {[%emt 0:06:03]} Bxf3 {[%emt 0:04:56]} 17. Bxf3 {[%emt 0:00:34]} Qxh3 {[%emt 0:00:35]} 18. Be7 {[%emt 0:03:37]} Re8 {[%emt 0:05:20]} 19. Bxc6 {[%emt 0:07:38]} bxc6 {[%emt 0:00:36]} 20. Qxa6 {[%emt 0:00:06]} Qd7 {[%emt 0:00:13]} 21. Qa3 {[%emt 0:01:35]} Rab8 {[%emt 0:01:51]} 22. Bc5 {[%emt 0:02:20]} Rxe1+ {[%emt 0:02:00]} 23. Rxe1 {[%emt 0:00:05]} Re8 {[%emt 0:00:05]} 24. Rxe8+ {[%emt 0:01:54]} Qxe8 {[%emt 0:00:01]} 25. Qxa7 {[%emt 0:00:14]} Qe1+ {[%emt 0:00:25]} 26. Kg2 {[%emt 0:00:06]} Qe4+ {[%emt 0:00:10]} 27. Kh2 {[%emt 0:00:09]} h5 {[%emt 0:01:52]} 28. Qb8+ {[%emt 0:00:28]} Kh7 {[%emt 0:00:05]} 29. Qf4 {[%emt 0:00:18]} Qe6 {[%emt 0:01:09]} 30. a4 {[%emt 0:01:23]} Bh6 {[%emt 0:00:31]} 31. Qf3 {[%emt 0:01:00]} f5 {[%emt 0:01:11]} 32. a5 {[%emt 0:01:06]} f4 {[%emt 0:00:18]} 33. a6 {[%emt 0:00:49]} fxg3+ {[%emt 0:00:57]} 34. fxg3 {[%emt 0:00:05]} Qa2 {[%emt 0:00:03]} 35. Ba3 {[%emt 0:00:42]} 1-0

[Event "AUT-ch Open 2020"]
[Site "Graz"]
[Date "2020.02.16"]
[Round "3.1"]
[White "Bin-Suhayl, Ieysaa"]
[Black "Drnovsek, Gal"]
[Result "1/2-1/2"]
[ECO "E09"]
[WhiteElo "2174"]
[BlackElo "2390"]
[Annotator "ChessBase"]
[PlyCount "80"]
[EventDate "2020.02.14"]
[EventType "swiss"]
[EventCountry "AUT"]
[SourceTitle "playchess.com"]
[Source "ChessBase"]
[SourceQuality "1"]
[TimeControl "40/5400+30:1800+30"]

1. d4 {[%emt 0:00:00]} Nf6 {[%emt 0:00:57]} 2. c4 {[%emt 0:00:00]} e6 {[%emt 0:00:07]} 3. Nf3 {[%emt 0:00:00]} d5 {[%emt 0:00:10]} 4. g3 {[%emt 0:00:00]} Bb4+ {[%emt 0:01:43]} 5. Bd2 {[%emt 0:00:00]} Be7 {[%emt 0:00:25]} 6. Bg2 {[%emt 0:00:03]} O-O {[%emt 0:00:07]} 7. Qc2 {[%emt 0:00:01]} c6 {[%emt 0:01:10]} 8. O-O {[%emt 0:00:04]} Nbd7 {[%emt 0:01:12]} 9. Bf4 {[%emt 0:00:29]} Nh5 {[%emt 0:01:58]} 10. Bc1 {[%emt 0:00:04]} Nhf6 {[%emt 0:00:59]} 11. Nbd2 {[%emt 0:00:18]} b6 {[%emt 0:02:06]} 12. e4 {[%emt 0:00:07]} Ba6 {[%emt 0:02:16]} 13. e5 {[%emt 0:02:11]} Ne8 {[%emt 0:00:35]} 14. Re1 {[%emt 0:03:34]} Nc7 {[%emt 0:04:45]} 15. b3 {[%emt 0:03:57]} c5 {[%emt 0:02:53]} 16. Ba3 {[%emt 0:04:51]} Rc8 {[%emt 0:04:18]} 17. Rac1 {[%emt 0:09:08]} dxc4 {[%emt 0:07:42]} 18. Nxc4 {[%emt 0:00:24]} Nb5 {[%emt 0:02:15]} 19. Bb2 {[%emt 0:01:43]} Nxd4 {[%emt 0:09:00]} 20. Bxd4 {[%emt 0:03:23]} cxd4 {[%emt 0:00:09]} 21. Nxd4 {[%emt 0:06:25]} Bxc4 {[%emt 0:20:14]} 22. bxc4 {[%emt 0:00:42]} Qc7 {[%emt 0:03:34]} 23. Nc6 {[%emt 0:01:59]} Nb8 {[%emt 0:00:35]} 24. Nxb8 {[%emt 0:06:52]} Qxb8 {[%emt 0:00:08]} 25. Qe4 {[%emt 0:00:39]} Rfd8 {[%emt 0:01:52]} 26. Red1 {[%emt 0:05:02]} Ba3 {[%emt 0:01:14]} 27. Rb1 {[%emt 0:00:23]} Qc7 {[%emt 0:02:47]} 28. Bf1 {[%emt 0:00:44]} Bc5 {[%emt 0:01:49]} 29. Kg2 {[%emt 0:01:11]} g6 {[%emt 0:01:09]} 30. Be2 {[%emt 0:00:34]} a5 {[%emt 0:01:28]} 31. h4 {[%emt 0:07:21]} Bb4 {[%emt 0:03:01]} 32. h5 {[%emt 0:02:50]} Bc3 {[%emt 0:01:14]} 33. f4 {[%emt 0:00:48]} Bb4 {[%emt 0:03:03]} 34. hxg6 {[%emt 0:01:44]} hxg6 {[%emt 0:00:16]} 35. g4 {[%emt 0:05:02]} Qe7 {[%emt 0:04:29]} 36. Qf3 {[%emt 0:05:29]} Kg7 {[%emt 0:01:13]} 37. Qe4 {[%emt 0:02:23]} Bc5 {[%emt 0:02:07]} 38. Qf3 {[%emt 0:00:58]} Rxd1 {[%emt 0:03:59]} 39. Rxd1 {[%emt 0:00:35]} Rh8 {[%emt 0:01:51]} 40. Qg3 {[%emt 0:02:10]} Qh4 {[%emt 0:08:06]} 1/2-1/2

[Event "AUT-ch Open 2020"]
[Site "Graz"]
[Date "2020.02.16"]
[Round "3.2"]
[White "Secheres, Adrian-Simion"]
[Black "Hapala, Elisabeth"]
[Result "1-0"]
[ECO "E51"]
[WhiteElo "2387"]
[BlackElo "2170"]
[Annotator "ChessBase"]
[PlyCount "81"]
[EventDate "2020.02.14"]
[EventType "swiss"]
[EventCountry "AUT"]
[SourceTitle "playchess.com"]
[Source "ChessBase"]
[SourceQuality "1"]
[TimeControl "40/5400+30:1800+30"]

1. d4 {[%emt 0:00:00]} Nf6 {[%emt 0:00:00]} 2. c4 {[%emt 0:00:00]} e6 {[%emt 0:00:00]} 3. Nc3 {[%emt 0:00:11]} Bb4 {[%emt 0:00:00]} 4. e3 {[%emt 0:00:22]} O-O {[%emt 0:00:32]} 5. Nf3 {[%emt 0:00:34]} d5 {[%emt 0:00:48]} 6. Bd2 {[%emt 0:00:12]} b6 {[%emt 0:08:29]} 7. cxd5 {[%emt 0:00:44]} exd5 {[%emt 0:00:15]} 8. Rc1 {[%emt 0:00:20]} Re8 {[%emt 0:05:25]} 9. Bd3 {[%emt 0:00:41]} Bb7 {[%emt 0:03:40]} 10. O-O {[%emt 0:00:47]} a6 {[%emt 0:11:56]} 11. Ne5 {[%emt 0:03:17]} Nbd7 {[%emt 0:02:06]} 12. f4 {[%emt 0:01:44]} c5 {[%emt 0:23:55]} 13. Rf3 {[%emt 0:08:48]} Ne4 {[%emt 0:05:59]} 14. Be1 {[%emt 0:16:58]} Ndf6 {[%emt 0:10:22]} 15. Bh4 {[%emt 0:11:38]} cxd4 {[%emt 0:02:16]} 16. exd4 {[%emt 0:00:16]} Rc8 {[%emt 0:02:09]} 17. Rh3 {[%emt 0:02:34]} Be7 {[%emt 0:05:18]} 18. Bxf6 {[%emt 0:03:16]} Bxf6 {[%emt 0:08:10]} 19. Qh5 {[%emt 0:00:38]} Bxe5 {[%emt 0:00:04]} 20. Qxh7+ {[%emt 0:00:15]} Kf8 {[%emt 0:00:00]} 21. fxe5 {[%emt 0:00:15]} Qg5 {[%emt 0:04:14]} 22. Rf1 {[%emt 0:01:08]} Ke7 {[%emt 0:04:48]} 23. Bxe4 {[%emt 0:03:28]} dxe4 {[%emt 0:00:03]} 24. Rg3 {[%emt 0:00:16]} Rh8 {[%emt 0:00:54]} 25. Qxe4 {[%emt 0:02:08]} Bxe4 {[%emt 0:00:31]} 26. Rxg5 {[%emt 0:00:06]} Bd3 {[%emt 0:00:27]} 27. Rd1 {[%emt 0:01:49]} Bc2 {[%emt 0:00:28]} 28. Rd2 {[%emt 0:00:06]} Bg6 {[%emt 0:00:04]} 29. d5 {[%emt 0:01:31]} b5 {[%emt 0:00:41]} 30. a3 {[%emt 0:00:11]} a5 {[%emt 0:00:48]} 31. d6+ {[%emt 0:02:07]} Ke6 {[%emt 0:00:27]} 32. Nxb5 {[%emt 0:00:57]} Rc1+ {[%emt 0:00:09]} 33. Kf2 {[%emt 0:00:05]} Rxh2 {[%emt 0:00:17]} 34. Nd4+ {[%emt 0:00:31]} Kd7 {[%emt 0:00:55]} 35. e6+ {[%emt 0:00:06]} Kd8 {[%emt 0:00:41]} 36. e7+ {[%emt 0:01:59]} Kd7 {[%emt 0:00:10]} 37. Rxa5 {[%emt 0:00:18]} Be4 {[%emt 0:00:51]} 38. Ra7+ {[%emt 0:00:20]} Ke8 {[%emt 0:00:08]} 39. d7+ {[%emt 0:00:24]} Kxe7 {[%emt 0:00:05]} 40. d8=Q+ {[%emt 0:00:08]} Kxd8 {[%emt 0:00:05]} 41. Nc6+ {[%emt 0:30:06]} 1-0

[Event "AUT-ch Open 2020"]
[Site "Graz"]
[Date "2020.02.16"]
[Round "3.3"]
[White "Banzea, Alexandru-Bogdan"]
[Black "Cosman, Andreea-Marioara"]
[Result "1-0"]
[ECO "B72"]
[WhiteElo "2368"]
[BlackElo "2165"]
[Annotator "ChessBase"]
[PlyCount "63"]
[EventDate "2020.02.14"]
[EventType "swiss"]
[EventCountry "AUT"]
[SourceTitle "playchess.com"]
[Source "ChessBase"]
[SourceQuality "1"]
[TimeControl "40/5400+30:1800+30"]

1. e4 {[%emt 0:00:00]} c5 {[%emt 0:00:00]} 2. Nf3 {[%emt 0:00:00]} d6 {[%emt 0:00:00]} 3. d4 {[%emt 0:00:00]} cxd4 {[%emt 0:00:00]} 4. Nxd4 {[%emt 0:00:01]} Nf6 {[%emt 0:00:00]} 5. Nc3 {[%emt 0:00:06]} a6 {[%emt 0:00:00]} 6. h3 {[%emt 0:00:09]} g6 {[%emt 0:00:11]} 7. Be3 {[%emt 0:00:23]} Nc6 {[%emt 0:00:38]} 8. Qd2 {[%emt 0:00:31]} Bg7 {[%emt 1:33:11]} 9. O-O-O {[%emt 0:00:49]} Bd7 {[%emt 0:00:00]} 10. g4 {[%emt 0:06:18]} O-O {[%emt 0:00:00]} 11. f3 {[%emt 0:00:52]} Rc8 {[%emt 0:00:00]} 12. h4 {[%emt 0:01:47]} h5 {[%emt 0:00:00]} 13. Kb1 {[%emt 0:08:03]} Qa5 {[%emt 0:00:00]} 14. Nb3 {[%emt 0:05:40]} Qd8 {[%emt 0:00:00]} 15. Nd5 {[%emt 0:07:29]} Nxd5 {[%emt 0:00:00]} 16. exd5 {[%emt 0:00:38]} Ne5 {[%emt 0:00:00]} 17. Nd4 {[%emt 0:06:09]} hxg4 {[%emt 0:00:00]} 18. h5 {[%emt 0:01:21]} gxf3 {[%emt 0:00:00]} 19. hxg6 {[%emt 0:16:35]} fxg6 {[%emt 0:00:00]} 20. Bh6 {[%emt 0:13:35]} Rf7 {[%emt 0:00:08]} 21. Bxg7 {[%emt 0:03:43]} Rxg7 {[%emt 0:02:42]} 22. Qh6 {[%emt 0:06:00]} Ng4 {[%emt 0:02:07]} 23. Qh8+ {[%emt 0:02:03]} Kf7 {[%emt 0:00:04]} 24. Qh3 {[%emt 0:00:17]} Ne5 {[%emt 0:00:54]} 25. Ne6 {[%emt 0:01:59]} Qc7 {[%emt 0:00:53]} 26. Bd3 {[%emt 0:00:55]} Qa5 {[%emt 0:01:22]} 27. Bxg6+ {[%emt 0:07:21]} Nxg6 {[%emt 0:00:12]} 28. Qxf3+ {[%emt 0:01:42]} Kg8 {[%emt 0:00:04]} 29. Nxg7 {[%emt 0:01:11]} Kxg7 {[%emt 0:00:12]} 30. Rdg1 {[%emt 0:01:12]} Be8 {[%emt 0:00:27]} 31. Qh3 {[%emt 0:00:33]} Qc7 {[%emt 0:01:21]} 32. Qh8+ {[%emt 0:00:18]} 1-0

[Event "AUT-ch Open 2020"]
[Site "Graz"]
[Date "2020.02.16"]
[Round "3.4"]
[White "Giacomini, Hector"]
[Black "Barp, Alberto"]
[Result "0-1"]
[ECO "E14"]
[WhiteElo "2161"]
[BlackElo "2368"]
[Annotator "ChessBase"]
[PlyCount "58"]
[EventDate "2020.02.14"]
[EventType "swiss"]
[EventCountry "AUT"]
[SourceTitle "playchess.com"]
[Source "ChessBase"]
[SourceQuality "1"]
[TimeControl "40/5400+30:1800+30"]

1. Nf3 {[%emt 0:00:00]} d5 {[%emt 0:00:00]} 2. e3 {[%emt 0:00:00]} Nf6 {[%emt 0:00:02]} 3. c4 {[%emt 0:00:00]} e6 {[%emt 0:00:04]} 4. Nc3 {[%emt 0:00:00]} b6 {[%emt 0:00:33]} 5. b3 {[%emt 0:00:15]} Bd6 {[%emt 0:00:55]} 6. Bb2 {[%emt 0:00:10]} O-O {[%emt 0:00:55]} 7. Rc1 {[%emt 0:00:07]} a6 {[%emt 0:00:38]} 8. d4 {[%emt 0:01:40]} Nbd7 {[%emt 0:00:46]} 9. Bd3 {[%emt 0:00:17]} Bb7 {[%emt 0:00:06]} 10. O-O {[%emt 0:00:08]} Ne4 {[%emt 0:07:36]} 11. Ne2 {[%emt 0:02:26]} Qf6 {[%emt 0:08:31]} 12. Qc2 {[%emt 0:07:25]} Qh6 {[%emt 0:01:36]} 13. h3 {[%emt 0:12:08]} Ndf6 {[%emt 0:10:22]} 14. Ne5 {[%emt 0:01:57]} Rad8 {[%emt 0:06:52]} 15. Rcd1 {[%emt 0:11:30]} dxc4 {[%emt 0:12:48]} 16. Nxc4 {[%emt 0:02:00]} Qg5 {[%emt 0:18:46]} 17. f4 {[%emt 0:11:05]} Qh4 {[%emt 0:03:50]} 18. Nxd6 {[%emt 0:08:00]} cxd6 {[%emt 0:00:41]} 19. Qc7 {[%emt 0:00:47]} Rd7 {[%emt 0:01:49]} 20. Qc2 {[%emt 0:05:27]} Rc8 {[%emt 0:00:04]} 21. Qb1 {[%emt 0:00:23]} Rdc7 {[%emt 0:03:22]} 22. Bc1 {[%emt 0:02:13]} Ng3 {[%emt 0:03:25]} 23. Nxg3 {[%emt 0:05:17]} Qxg3 {[%emt 0:00:03]} 24. Rf2 {[%emt 0:00:20]} Nd5 {[%emt 0:01:16]} 25. Re1 {[%emt 0:08:34]} Nc3 {[%emt 0:01:42]} 26. Qb2 {[%emt 0:03:12]} Bxg2 {[%emt 0:00:51]} 27. Rxg2 {[%emt 0:00:16]} Qxe1+ {[%emt 0:00:05]} 28. Kh2 {[%emt 0:00:06]} Na4 {[%emt 0:01:42]} 29. bxa4 {[%emt 0:01:01]} Rxc1 {[%emt 0:15:10]} 0-1

[Event "AUT-ch Open 2020"]
[Site "Graz"]
[Date "2020.02.16"]
[Round "3.5"]
[White "Szotkowski, Jakub"]
[Black "Simonetto, Andrea"]
[Result "1/2-1/2"]
[ECO "E51"]
[WhiteElo "2367"]
[BlackElo "2158"]
[Annotator "ChessBase"]
[PlyCount "67"]
[EventDate "2020.02.14"]
[EventType "swiss"]
[EventCountry "AUT"]
[SourceTitle "playchess.com"]
[Source "ChessBase"]
[SourceQuality "1"]
[TimeControl "40/5400+30:1800+30"]

1. d4 {[%emt 1:30:30]} d5 {[%emt 0:00:00]} 2. c4 {[%emt 0:00:00]} e6 {[%emt 0:00:00]} 3. Nc3 {[%emt 0:00:00]} Bb4 {[%emt 0:00:00]} 4. e3 {[%emt 0:00:00]} Nf6 {[%emt 0:00:07]} 5. Nf3 {[%emt 0:00:00]} O-O {[%emt 0:00:51]} 6. Bd2 {[%emt 0:00:00]} b6 {[%emt 0:01:57]} 7. cxd5 {[%emt 0:00:00]} exd5 {[%emt 0:00:37]} 8. Bd3 {[%emt 0:00:00]} Ba6 {[%emt 0:16:07]} 9. Bxa6 {[%emt 0:00:00]} Nxa6 {[%emt 0:00:03]} 10. Qa4 {[%emt 0:00:00]} Qc8 {[%emt 0:06:12]} 11. O-O {[%emt 0:00:00]} Bxc3 {[%emt 0:03:34]} 12. Bxc3 {[%emt 0:00:00]} Qb7 {[%emt 0:01:55]} 13. Rac1 {[%emt 0:00:00]} Ne4 {[%emt 0:05:36]} 14. Rfd1 {[%emt 0:00:00]} f6 {[%emt 0:05:23]} 15. Be1 {[%emt 0:00:00]} Rac8 {[%emt 0:03:49]} 16. b3 {[%emt 0:00:00]} Rfd8 {[%emt 0:02:27]} 17. Qc6 {[%emt 0:00:00]} Qxc6 {[%emt 0:00:29]} 18. Rxc6 {[%emt 0:00:00]} Nb8 {[%emt 0:01:46]} 19. Rc2 {[%emt 0:00:00]} Nd7 {[%emt 0:03:28]} 20. Kf1 {[%emt 0:00:00]} Kf7 {[%emt 0:02:46]} 21. Ke2 {[%emt 0:00:00]} c6 {[%emt 0:04:24]} 22. Rdc1 {[%emt 0:00:00]} Nb8 {[%emt 0:00:23]} 23. Bb4 {[%emt 0:00:00]} Ke6 {[%emt 0:01:09]} 24. Ne1 {[%emt 0:00:00]} Re8 {[%emt 0:00:58]} 25. Nd3 {[%emt 0:00:00]} Kd7 {[%emt 0:00:23]} 26. Be1 {[%emt 0:00:00]} Nd6 {[%emt 0:00:34]} 27. a4 {[%emt 0:00:00]} a5 {[%emt 0:07:10]} 28. g4 {[%emt 0:00:00]} h5 {[%emt 0:08:39]} 29. h3 {[%emt 0:00:00]} hxg4 {[%emt 0:00:18]} 30. hxg4 {[%emt 0:00:00]} Rh8 {[%emt 0:00:21]} 31. Nf4 {[%emt 0:01:16]} g5 {[%emt 0:07:03]} 32. Nh5 {[%emt 0:01:21]} Rcf8 {[%emt 0:00:37]} 33. Ng3 {[%emt 0:03:24]} f5 {[%emt 0:01:32]} 34. Kd3 {[%emt 0:10:29]} 1/2-1/2